bitfinex/quotes_BTCUSD_20241205
["timestamp","ask_amount","ask_price","bid_price","bid_amount"]
[1733368909435,1.02116005,103210.0,103180.0,0.14125595]
[1733368909616,0.82736705,103210.0,103180.0,0.36724795]
[1733368909824,0.82736705,103210.0,103180.0,0.14125595]
[1733368910045,0.63357605,103210.0,103180.0,0.49323095]
[1733368910178,0.5339,103210.0,103190.0,0.125979]
[1733368910398,0.5339,103210.0,103190.0,0.25292709]
[1733368910399,0.53893879,103210.0,103190.0,0.25292709]
[1733368910594,0.53893879,103210.0,103200.0,0.125968]
[1733368910797,0.00503879,103210.0,103200.0,0.22693699]
[1733368910996,0.42022872,103230.0,103200.0,0.35289699]
[1733368911181,0.22648672,103230.0,103200.0,0.51282661]
[1733368911384,0.22648672,103230.0,103210.0,0.251912]
[1733368911591,0.22648672,103230.0,103210.0,0.0009689]
[1733368911795,0.09967605,103220.0,103210.0,0.0009689]
[1733368911998,0.29343605,103220.0,103210.0,0.0009689]
[1733368914061,0.61507169,103220.0,103210.0,0.0009689]
[1733368914265,0.29343605,103220.0,103210.0,0.0009689]
[1733368914473,0.193817,103190.0,103180.0,0.01429395]
[1733368914720,0.29349305,103190.0,103180.0,0.01429395]
[1733368915042,1.693817,103190.0,103180.0,0.01429395]
[1733368915172,0.31949,103210.0,103180.0,0.01429395]
[1733368915375,0.513281,103210.0,103180.0,0.14028595]
[1733368915605,0.29348605,103200.0,103180.0,0.01526395]
[1733368915810,0.193817,103190.0,103180.0,0.01544033]
[1733368916015,0.19381,103200.0,103180.0,0.01544033]
[1733368916448,0.38762,103200.0,103180.0,0.01544033]
[1733368917223,0.193817,103190.0,103180.0,0.01544033]
[1733368917679,0.29349305,103190.0,103180.0,0.01544033]
[1733368920305,0.193817,103190.0,103180.0,0.01544033]
[1733368920526,0.29349305,103190.0,103180.0,0.01544033]
[1733368921211,0.38829183,103190.0,103180.0,0.01544033]
[1733368922563,0.51109183,103190.0,103140.0,0.13813817]
[1733368922761,0.269592,103150.0,103140.0,0.00017644]
[1733368922972,0.51116683,103150.0,103140.0,0.00017644]
[1733368924809,0.52345459,103150.0,103140.0,0.00017644]
[1733368925219,0.56996133,103150.0,103140.0,0.00017644]
[1733368925861,0.39496132,103150.0,103140.0,0.00017644]
[1733368926071,0.39496132,103150.0,103100.0,0.2]
[1733368926072,0.193914,103140.0,103100.0,0.2]
[1733368926291,0.193961,103120.0,103100.0,0.00058741]
[1733368926497,0.193967,103110.0,103100.0,0.00058741]
[1733368926676,1.97384978,103110.0,103100.0,0.00058741]
[1733368926910,2.02124978,103110.0,103100.0,0.00058741]
[1733368928140,0.52124978,103110.0,103100.0,0.00058741]
[1733368928375,0.67124978,103110.0,103100.0,0.00058741]
[1733368928810,0.194005,103090.0,103080.0,9.1e-07]
[1733368928990,0.53949499,103090.0,103080.0,9.1e-07]
[1733368929814,0.24581394,103090.0,103080.0,9.1e-07]
[1733368930380,0.53949499,103090.0,103080.0,9.1e-07]
[1733368930826,0.34548999,103090.0,103080.0,9.1e-07]
[1733368931034,0.53949499,103090.0,103080.0,9.1e-07]
[1733368931491,0.34548999,103090.0,103080.0,9.1e-07]
[1733368931805,0.53949499,103090.0,103080.0,9.1e-07]
[1733368932257,0.98923737,103090.0,103030.0,0.226168]
[1733368932464,0.29370005,103080.0,103050.0,0.126143]
[1733368932614,0.194069,103060.0,103020.0,0.34316849]
[1733368932836,0.48782005,103060.0,103030.0,0.226167]
[1733368933217,0.29376805,103050.0,103020.0,0.0052044]
[1733368933430,0.29377505,103040.0,103030.0,0.09704]
[1733368933691,0.41772058,103040.0,103030.0,0.09704]
[1733368933891,0.09917208,103040.0,103030.0,0.09721612]
[1733368934301,0.09917208,103040.0,103030.0,0.22339212]
[1733368934509,0.09917208,103040.0,103030.0,0.32339212]
[1733368934722,0.09917208,103050.0,103040.0,0.126164]
[1733368934933,0.388111,103070.0,103050.0,0.126151]
[1733368934934,0.20592716,103070.0,103050.0,0.126151]
[1733368935131,0.11154821,103070.0,103050.0,0.09704]
[1733368935318,0.30559121,103070.0,103050.0,0.09704]
[1733368935550,0.49963421,103070.0,103050.0,0.22319]
[1733368935975,0.30559121,103070.0,103050.0,0.09704]
[1733368936232,0.11154821,103070.0,103050.0,0.232896]
[1733368936446,0.47163564,103090.0,103070.0,0.135829]
[1733368936447,0.344011,103090.0,103070.0,0.135829]
[1733368936659,0.194025,103080.0,103070.0,0.097021]
[1733368936885,0.09591602,103080.0,103070.0,0.097021]
[1733368937112,0.09591602,103080.0,103070.0,0.07951159]
[1733368937113,0.5043409,103080.0,103070.0,0.07951159]
[1733368937341,0.5431099,103080.0,103070.0,0.07951159]
[1733368937549,0.52019181,103080.0,103070.0,0.07951159]
[1733368937758,1.98142281,103080.0,103070.0,0.07968771]
[1733368938170,1.98142881,103080.0,103030.0,0.1]
[1733368938432,1.88568859,103080.0,103050.0,0.135855]
[1733368938667,0.194062,103060.0,103030.0,0.32291]
[1733368938906,0.194062,103060.0,103050.0,0.09704]
[1733368939120,0.38861247,103060.0,103050.0,0.09704]
[1733368939332,0.47751547,103060.0,103050.0,0.09704]
[1733368939751,0.52402221,103060.0,103050.0,0.09704]
[1733368940039,0.51401921,103060.0,103050.0,0.09704]
[1733368940712,0.14138116,103060.0,103050.0,0.09704]
[1733368940938,0.09317456,103060.0,103050.0,0.09704]
[1733368941166,0.09317456,103060.0,103050.0,0.232896]
[1733368941384,0.09317456,103060.0,103050.0,0.09704]
[1733368941612,0.38691161,103060.0,103050.0,0.09704]
[1733368941829,0.39691461,103060.0,103050.0,0.09704]
[1733368942047,0.43451161,103060.0,103050.0,0.09704]
[1733368942453,0.44451461,103060.0,103050.0,0.09704]
[1733368943077,0.43451161,103060.0,103050.0,0.09704]
[1733368943286,0.66731161,103060.0,103050.0,0.09704]
[1733368943506,0.76731161,103060.0,103050.0,0.09704]
[1733368944327,0.194118,103030.0,103020.0,0.0052044]
[1733368944540,0.4014059,103030.0,103020.0,0.0052044]
[1733368944770,0.4014059,103030.0,103020.0,0.0922644]
[1733368945389,0.194155,103010.0,103000.0,1.21]
[1733368945592,0.39029378,103010.0,103000.0,1.21017595]
[1733368946007,0.50029678,103010.0,103000.0,1.30725595]
[1733368946429,0.39029378,103010.0,103000.0,1.30725595]
[1733368946837,0.40029678,103010.0,103000.0,1.30725595]
[1733368947044,0.39029378,103010.0,103000.0,1.30725595]
[1733368947463,0.40029678,103010.0,103000.0,1.30725595]
[1733368947677,0.19613878,103010.0,103000.0,1.30725595]
[1733368947888,0.09646273,103010.0,103000.0,1.43346895]
[1733368948106,0.19613878,103010.0,103000.0,1.30725595]
[1733368948308,0.41991066,103010.0,103000.0,1.30725595]
[1733368948540,0.40990766,103010.0,103000.0,1.30725595]
[1733368948767,0.19613878,103010.0,103000.0,1.30725595]
[1733368949006,0.19613878,103010.0,103000.0,1.43346895]
[1733368949222,0.19613878,103010.0,103000.0,1.30725595]
[1733368950312,0.40029678,103010.0,103000.0,1.30725595]
[1733368950753,0.39029378,103010.0,103000.0,1.30725595]
[1733368951438,0.19613878,103010.0,103000.0,1.30725595]
[1733368951679,0.09646273,103010.0,103000.0,1.43346895]
[1733368951914,0.09646273,103010.0,103000.0,1.532638]
[1733368952148,0.2885293,103050.0,103030.0,0.126176]
[1733368952349,0.09967605,103050.0,103030.0,0.349403]
[1733368952565,0.00505962,103040.0,103030.0,0.349403]
[1733368952759,0.0944493,103040.0,103030.0,0.313224]
[1733368953008,0.15,103060.0,103040.0,0.216161]
[1733368953245,0.15,103060.0,103050.0,0.126152]
[1733368953505,0.24405372,103060.0,103050.0,0.413189]
[1733368953745,0.09405372,103060.0,103050.0,0.223192]
[1733368953974,0.22017389,103060.0,103050.0,0.223192]
[1733368954201,0.09405372,103060.0,103050.0,0.313189]
[1733368954652,0.09405372,103080.0,103070.0,0.126127]
[1733368954874,0.15,103090.0,103080.0,0.126115]
[1733368955083,0.15,103090.0,103080.0,0.313124]
[1733368955084,0.24681474,103090.0,103080.0,0.313124]
[1733368955546,0.11871474,103090.0,103080.0,0.513124]
[1733368955757,0.15,103110.0,103100.0,0.306388]
[1733368955978,0.12701162,103160.0,103130.0,0.116357]
[1733368956200,0.09967605,103150.0,103130.0,0.096965]
[1733368956618,1.59967605,103150.0,103130.0,0.096965]
[1733368958135,1.5,103150.0,103130.0,0.213321]
[1733368958818,1.59967605,103150.0,103130.0,0.096965]
[1733368959437,1.59967605,103150.0,103130.0,0.213322]
[1733368959647,0.00058875,103160.0,103130.0,0.303319]
[1733368959885,0.00058875,103160.0,103150.0,0.189997]
[1733368960116,0.00058875,103160.0,103150.0,0.4339123]
[1733368960782,0.01516408,103190.0,103180.0,0.206298]
[1733368961006,0.01534069,103190.0,103180.0,0.303216]
[1733368961445,0.11155154,103190.0,103180.0,0.303216]
[1733368961690,0.09638746,103190.0,103180.0,0.303216]
[1733368962338,0.09638746,103190.0,103180.0,0.213219]
[1733368962568,0.19606351,103190.0,103180.0,0.096918]
[1733368962786,0.09638746,103190.0,103180.0,0.096918]
[1733368963688,0.09638746,103190.0,103180.0,0.213219]
[1733368963933,0.09638746,103190.0,103180.0,0.096918]
[1733368965228,0.09638746,103190.0,103180.0,0.213219]
[1733368965436,0.09638746,103190.0,103180.0,0.096918]
[1733368965924,0.09638746,103190.0,103180.0,0.383833]
[1733368967247,0.09638746,103190.0,103180.0,0.395352]
[1733368967883,0.19638746,103190.0,103180.0,0.395352]
[1733368968087,0.19638746,103190.0,103180.0,0.4681486]
[1733368968501,0.19638746,103190.0,103180.0,0.395352]
[1733368970904,0.12140049,103190.0,103180.0,0.395352]
[1733368971111,0.12140049,103190.0,103180.0,0.283833]
[1733368971321,0.12140049,103190.0,103180.0,0.096918]
[1733368971551,0.20280049,103190.0,103180.0,0.186915]
[1733368971762,0.12140049,103190.0,103180.0,0.283833]
[1733368973344,0.12140049,103190.0,103180.0,0.193836]
[1733368973576,0.12140049,103190.0,103180.0,0.283833]
[1733368974285,0.12140049,103190.0,103180.0,0.383833]
[1733368976749,0.12140049,103190.0,103180.0,0.283833]
[1733368976977,0.12140049,103190.0,103180.0,0.4427466]
[1733368977234,0.12140049,103190.0,103180.0,0.383833]
[1733368978603,0.14322201,103190.0,103180.0,0.383833]
[1733368978832,0.12140049,103190.0,103180.0,0.383833]
[1733368979989,0.12140049,103190.0,103180.0,0.283833]
[1733368980440,0.12140049,103190.0,103180.0,0.383833]
[1733368980441,0.07829531,103190.0,103180.0,0.383833]
[1733368980661,0.07829531,103190.0,103180.0,0.4330545]
[1733368981134,0.09688935,103220.0,103180.0,0.4330545]
[1733368981361,0.09688935,103220.0,103190.0,0.096908]
[1733368981579,0.11492396,103220.0,103190.0,0.193817]
[1733368981815,0.01803461,103220.0,103190.0,0.24681235]
[1733368982035,0.01803461,103220.0,103200.0,0.096898]
[1733368982287,0.01803461,103220.0,103200.0,0.193797]
[1733368982519,0.02698877,103220.0,103200.0,0.096899]
[1733368982965,0.01880574,103210.0,103200.0,0.096899]
[1733368983214,0.23053372,103210.0,103200.0,0.096899]
[1733368983454,0.49476912,103210.0,103200.0,0.096899]
[1733368983914,0.54046912,103210.0,103200.0,0.096899]
[1733368984138,0.55047212,103210.0,103170.0,0.01146204]
[1733368984377,0.20382,103190.0,103150.0,0.1306473]
[1733368984597,0.19353152,103160.0,103150.0,0.010016]
[1733368984871,0.3925159,103160.0,103150.0,0.106946]
[1733368985111,0.09930833,103160.0,103150.0,0.393889]
[1733368985344,0.09930833,103160.0,103150.0,0.4332779]
[1733368985790,0.00750832,103200.0,103170.0,0.096922]
[1733368986024,0.11843973,103190.0,103170.0,0.096927]
[1733368986257,0.05471433,103180.0,103170.0,0.096927]
[1733368986481,0.44427947,103180.0,103170.0,0.096927]
[1733368987187,0.45454015,103180.0,103170.0,0.096927]
[1733368987464,0.45454015,103180.0,103170.0,0.046927]
[1733368987917,0.010003,103170.0,103150.0,0.01060475]
[1733368988154,0.29354905,103160.0,103150.0,0.01060475]
[1733368988373,0.39294111,103160.0,103150.0,0.01060475]
[1733368988608,0.40294411,103160.0,103150.0,0.10754475]
[1733368988843,0.09939206,103160.0,103150.0,0.11829923]
[1733368989070,0.09939206,103160.0,103150.0,0.40524223]
[1733368989307,0.09939206,103160.0,103150.0,0.30524223]
[1733368989545,0.09730818,103160.0,103150.0,0.10754475]
[1733368989755,0.09730818,103160.0,103150.0,0.40606785]
[1733368989978,0.397626,103200.0,103160.0,0.096928]
[1733368990218,0.09967605,103190.0,103170.0,0.096927]
[1733368990477,0.09871294,103190.0,103170.0,0.096927]
[1733368990709,0.1249,103210.0,103170.0,0.2160032]
[1733368990933,0.09967605,103200.0,103170.0,0.28385]
[1733368991140,0.09967605,103200.0,103170.0,0.186924]
[1733368991358,0.09967605,103200.0,103170.0,0.290774]
[1733368991570,0.09967605,103200.0,103170.0,0.290769]
[1733368991801,0.29347705,103200.0,103170.0,0.290769]
[1733368992009,0.09967605,103200.0,103170.0,0.193848]
[1733368992215,0.09967605,103200.0,103170.0,0.283842]
[1733368992433,0.09967605,103200.0,103170.0,0.290772]
[1733368992668,0.09967605,103200.0,103180.0,0.096916]
[1733368992907,0.09967605,103200.0,103190.0,0.096908]
[1733368993154,0.19505692,103200.0,103190.0,0.193817]
[1733368993386,0.19505692,103200.0,103190.0,0.096909]
[1733368994337,0.19517086,103200.0,103190.0,0.096909]
[1733368994565,0.19517086,103200.0,103190.0,0.193817]
[1733368995263,0.19517086,103200.0,103190.0,0.08698361]
[1733368995485,0.19517086,103200.0,103190.0,0.18339161]
[1733368995713,0.09549481,103200.0,103190.0,0.18339161]
[1733368995938,0.09632988,103200.0,103190.0,0.37338861]
[1733368997538,0.07873469,103200.0,103190.0,0.54928861]
[1733368997823,0.06987321,103200.0,103190.0,0.59538861]
[1733368998051,0.06987321,103200.0,103190.0,0.67430987]
[1733368998528,0.03572269,103200.0,103190.0,0.67430987]
[1733368998754,0.09386269,103200.0,103190.0,0.68571144]
[1733368999199,0.09386269,103200.0,103190.0,0.67971144]
[1733368999651,0.09643996,103200.0,103190.0,0.67971144]
[1733369000125,0.09643996,103200.0,103190.0,0.27879018]
[1733369000356,1.59643996,103200.0,103190.0,0.27879018]
[1733369000582,1.59623879,103200.0,103190.0,0.27879018]
[1733369000818,0.15,103210.0,103190.0,0.27879018]
[1733369000819,0.07223878,103210.0,103190.0,0.27879018]
[1733369001056,0.15,103220.0,103200.0,0.09689]
[1733369001285,0.26410094,103220.0,103200.0,0.307108]
[1733369001510,0.09967605,103210.0,103200.0,0.307102]
[1733369001733,0.39824853,103210.0,103200.0,0.11332]
[1733369002201,0.293798,103200.0,103190.0,0.00011394]
[1733369002442,0.397698,103180.0,103150.0,0.106955]
[1733369002667,0.09967605,103180.0,103170.0,0.096926]
[1733369002958,0.19446653,103180.0,103160.0,0.193859]
[1733369003182,0.09967605,103180.0,103170.0,0.096927]
[1733369003410,0.20460436,103180.0,103170.0,0.096927]
[1733369003634,0.39844036,103180.0,103170.0,0.096927]
[1733369004554,0.19460136,103180.0,103170.0,0.096927]
[1733369004770,0.19460136,103180.0,103170.0,0.193854]
[1733369005003,1.68960136,103180.0,103170.0,0.096927]
[1733369005688,0.09492531,103180.0,103170.0,0.283851]
[1733369005915,0.09370683,103180.0,103170.0,0.193854]
[1733369006141,0.38721888,103180.0,103170.0,0.096927]
[1733369006399,0.19338288,103180.0,103170.0,0.096927]
[1733369006632,0.38721888,103180.0,103170.0,0.096927]
[1733369006854,0.19338288,103180.0,103170.0,0.096927]
[1733369007754,1.69338288,103180.0,103170.0,0.096927]
[1733369008005,0.19338288,103180.0,103170.0,0.193854]
[1733369008237,0.19338288,103180.0,103170.0,0.096927]
[1733369008470,0.59855669,103180.0,103170.0,0.096927]
[1733369008696,0.350276,103160.0,103150.0,0.00058875]
[1733369008921,0.53765744,103160.0,103150.0,0.00058875]
[1733369009150,0.43765744,103160.0,103150.0,0.09752875]
[1733369009380,0.44766044,103160.0,103150.0,0.09752875]
[1733369009625,0.54766044,103160.0,103150.0,0.09752875]
[1733369009850,0.43765744,103160.0,103150.0,0.09752875]
[1733369010089,0.43765744,103160.0,103120.0,0.223]
[1733369010090,0.193929,103130.0,103120.0,0.223]
[1733369010309,0.48768971,103130.0,103120.0,0.223]
[1733369010770,0.38768971,103130.0,103120.0,0.31084844]
[1733369011249,0.42748437,103130.0,103120.0,0.19311836]
[1733369012155,0.42748437,103130.0,103120.0,0.07121836]
[1733369012377,0.42748437,103130.0,103120.0,0.02241836]
[1733369012823,0.42748437,103130.0,103060.0,0.1266]
[1733369012824,0.1,103080.0,103060.0,0.1266]
[1733369013083,0.09967605,103070.0,103040.0,0.090997]
[1733369013262,0.29371905,103070.0,103060.0,0.09702]
[1733369013489,0.19848593,103070.0,103060.0,0.09702]
[1733369013701,0.19748593,103070.0,103060.0,0.09702]
[1733369014867,0.20548593,103070.0,103060.0,0.19422661]
[1733369015325,0.22603452,103070.0,103060.0,0.09719661]
[1733369015551,0.39452793,103070.0,103030.0,0.2508313]
[1733369015769,0.09967605,103060.0,103030.0,0.25100713]
[1733369015992,0.09967605,103060.0,103040.0,0.194095]
[1733369016207,0.09967605,103060.0,103040.0,0.09705]
[1733369016428,0.29375005,103060.0,103040.0,0.09705]
[1733369016646,0.09867605,103060.0,103040.0,0.09705]
[1733369016902,0.29273905,103060.0,103040.0,0.09705]
[1733369017352,0.19408,103050.0,103040.0,0.09805]
[1733369017575,0.19287971,103050.0,103040.0,0.09805]
[1733369017804,0.22786142,103050.0,103040.0,0.09805]
[1733369018298,0.38786442,103050.0,103040.0,0.09705]
[1733369018516,0.58194442,103050.0,103040.0,0.09705]
[1733369018949,0.64696271,103050.0,103040.0,0.09705]
[1733369019586,0.54295971,103050.0,103040.0,0.09805]
[1733369019804,0.55296271,103050.0,103040.0,0.09805]
[1733369020024,0.24920366,103050.0,103040.0,0.195099]
[1733369020681,0.24920366,103050.0,103040.0,0.285096]
[1733369020889,0.24920366,103050.0,103040.0,0.330596]
[1733369021769,0.24920366,103050.0,103040.0,0.14355]
[1733369021999,0.34887971,103050.0,103040.0,0.09805]
[1733369022211,0.24920366,103050.0,103040.0,0.188047]
[1733369022425,0.24920366,103050.0,103040.0,0.285096]
[1733369022635,0.24320366,103050.0,103040.0,0.284096]
[1733369022849,0.24920366,103050.0,103040.0,0.285096]
[1733369023318,0.36780008,103050.0,103040.0,0.09705]
[1733369023527,0.24920366,103050.0,103040.0,0.195099]
[1733369023734,0.24320366,103050.0,103040.0,0.194099]
[1733369024169,0.24920366,103050.0,103040.0,0.285096]
[1733369024390,0.24320366,103050.0,103040.0,0.284096]
[1733369024821,0.24320366,103050.0,103040.0,0.194099]
[1733369025028,0.24320366,103050.0,103040.0,0.364796]
[1733369025248,0.232718,103120.0,103040.0,0.364796]
[1733369025249,0.110003,103130.0,103090.0,0.19399]
[1733369025488,0.20830495,103120.0,103090.0,0.097003]
[1733369025699,0.193981,103110.0,103090.0,0.097003]
[1733369025953,0.09967605,103110.0,103090.0,0.097003]
[1733369026167,0.29366205,103100.0,103090.0,0.097003]
[1733369026374,1.9012356,103100.0,103090.0,0.097003]
[1733369026585,1.6986207,103100.0,103090.0,0.098003]
[1733369028070,0.3986067,103100.0,103090.0,0.097003]
[1733369028505,0.2046207,103100.0,103090.0,0.097003]
[1733369029166,0.2106207,103100.0,103090.0,0.195005]
[1733369029397,0.09789762,103100.0,103090.0,0.194005]
[1733369029868,0.30620257,103100.0,103090.0,0.097003]
[1733369030087,0.40018857,103100.0,103090.0,0.097003]
[1733369030300,0.50018857,103100.0,103090.0,0.097003]
[1733369030752,0.52423682,103100.0,103090.0,0.097003]
[1733369030974,0.31445728,103100.0,103090.0,0.097003]
[1733369032289,0.09789762,103100.0,103090.0,0.097003]
[1733369032971,0.09789762,103100.0,103090.0,0.194005]
[1733369038582,0.09789762,103100.0,103090.0,0.194005]
[1733369038805,0.09789762,103100.0,103080.0,0.2696751]
[1733369039016,0.09789762,103100.0,103090.0,0.28804915]
[1733369039443,0.09789762,103100.0,103090.0,0.38505215]
[1733369039658,0.09789762,103100.0,103090.0,0.2853761]
[1733369040500,0.29188362,103100.0,103090.0,0.097003]
[1733369040737,0.50018857,103100.0,103090.0,0.097003]
[1733369040945,0.09789762,103100.0,103090.0,0.097003]
[1733369041161,0.09789762,103100.0,103090.0,0.194005]
[1733369042084,0.09789762,103100.0,103090.0,0.2853761]
[1733369042495,0.09789762,103100.0,103090.0,0.194005]
[1733369042756,0.19757367,103100.0,103090.0,0.097003]
[1733369042974,0.76392101,103100.0,103090.0,0.097003]
[1733369043184,0.78558065,103100.0,103090.0,0.097003]
[1733369043449,0.48624691,103100.0,103090.0,0.097003]
[1733369043652,0.47761801,103100.0,103090.0,0.05627167]
[1733369043875,0.66035045,103100.0,103090.0,0.05627167]
[1733369044102,0.51428621,103100.0,103090.0,0.04634919]
[1733369044315,0.40529165,103100.0,103090.0,0.01166301]
[1733369044523,0.10005596,103100.0,103090.0,0.01166301]
[1733369044736,0.09499762,103100.0,103090.0,0.13837012]
[1733369044942,0.09499762,103100.0,103090.0,0.20003611]
[1733369045366,0.09499762,103100.0,103090.0,0.10866501]
[1733369045574,0.09499762,103100.0,103090.0,0.01166301]
[1733369045781,0.28954402,103100.0,103090.0,0.01166301]
[1733369046004,0.39784897,103100.0,103090.0,0.01166301]
[1733369046210,0.49784897,103100.0,103090.0,0.01166301]
[1733369046425,0.56952007,103100.0,103090.0,0.01166301]
[1733369046656,0.51572007,103100.0,103090.0,0.01166301]
[1733369046885,0.194061,103060.0,103030.0,0.2370231]
[1733369047097,1.5,103050.0,103030.0,0.2370231]
[1733369047522,1.5,103050.0,103030.0,0.4311311]
[1733369047741,0.29373705,103060.0,103030.0,0.4311311]
[1733369047962,0.48781005,103060.0,103030.0,0.4311311]
[1733369048169,0.194081,103050.0,103030.0,0.18859693]
[1733369048382,1.79373705,103060.0,103030.0,0.18859693]
[1733369048587,1.79373705,103060.0,103030.0,0.28565593]
[1733369048794,1.98781105,103060.0,103030.0,0.28565593]
[1733369049083,1.98781105,103060.0,103030.0,0.19428483]
[1733369049294,0.19408,103050.0,103030.0,0.09722583]
[1733369049525,0.19408,103050.0,103030.0,0.18859693]
[1733369049938,1.98781505,103060.0,103030.0,0.28565493]
[1733369050640,1.79373705,103060.0,103030.0,0.28565493]
[1733369050886,1.98781405,103060.0,103030.0,0.09722583]
[1733369051103,0.29375705,103050.0,103030.0,0.09722583]
[1733369051577,0.3027279,103040.0,103030.0,0.09222583]
[1733369051794,0.41391621,103040.0,103030.0,0.09222583]
[1733369052017,0.3913131,103040.0,103030.0,0.09222583]
[1733369052259,0.4913131,103040.0,103030.0,0.08624255]
[1733369052502,0.3913131,103040.0,103030.0,0.08624255]
[1733369053171,0.73564244,103040.0,103030.0,0.06914274]
[1733369053435,0.74600507,103040.0,103030.0,0.06914274]
[1733369053664,0.294155,103010.0,103000.0,1.21]
[1733369053885,0.49335218,103010.0,103000.0,1.21017595]
[1733369054124,0.52581931,103010.0,103000.0,1.21017595]
[1733369054354,0.74874415,103010.0,103000.0,1.21017595]
[1733369054570,0.42651931,103010.0,103000.0,1.15066158]
[1733369054818,0.50268108,103010.0,103000.0,1.15066158]
[1733369055513,0.39335218,103010.0,103000.0,1.15066158]
[1733369055731,0.50198108,103010.0,103000.0,1.15066158]
[1733369056200,0.49335218,103010.0,103000.0,1.15066158]
[1733369056919,0.46965218,103010.0,103000.0,1.02256158]
[1733369057890,0.77576593,103010.0,103000.0,0.92875317]
[1733369058105,0.75986644,103010.0,103000.0,0.76496041]
[1733369058328,0.78197094,103010.0,103000.0,0.76496041]
[1733369058547,0.1,102950.0,102930.0,0.0041154]
[1733369058803,0.29394605,102950.0,102930.0,0.10184376]
[1733369059057,0.194287,102940.0,102930.0,0.10184376]
[1733369059289,0.39073068,102940.0,102930.0,0.10184376]
[1733369060874,0.19644368,102940.0,102930.0,0.10184376]
[1733369061077,0.39073068,102940.0,102930.0,0.10184376]
[1733369061819,0.39935958,102940.0,102930.0,0.10184376]
[1733369063477,0.54935958,102940.0,102930.0,0.10184376]
[1733369063933,0.54935958,102940.0,102930.0,0.05184376]
[1733369066972,0.57319781,102940.0,102930.0,0.05184376]
[1733369067189,0.57319781,102940.0,102930.0,0.04205376]
[1733369067409,0.67319781,102940.0,102930.0,0.04205376]
[1733369068343,0.54143068,102940.0,102930.0,0.04205376]
[1733369068597,0.64143068,102940.0,102930.0,0.04205376]
[1733369068807,0.54143068,102940.0,102930.0,0.04205376]
[1733369069290,0.54073068,102940.0,102930.0,0.04205376]
[1733369069517,0.34644368,102940.0,102930.0,0.04205376]
[1733369069733,0.54935958,102940.0,102930.0,0.04205376]
[1733369070215,0.54073068,102940.0,102930.0,0.04205376]
[1733369071111,0.34644368,102940.0,102930.0,0.04205376]
[1733369071331,0.24676763,102940.0,102930.0,0.23057786]
[1733369071567,0.24676763,102940.0,102930.0,0.04205376]
[1733369071568,0.56540744,102940.0,102930.0,0.04205376]
[1733369071792,0.24676763,102940.0,102930.0,0.04205376]
[1733369072458,0.34644368,102940.0,102930.0,0.04205376]
[1733369072687,0.54073068,102940.0,102930.0,0.04205376]
[1733369073178,0.54073068,102940.0,102930.0,0.13920676]
[1733369073179,0.34644368,102940.0,102930.0,0.13920676]
[1733369073415,0.24676763,102940.0,102930.0,0.21470676]
[1733369073645,0.34644368,102940.0,102930.0,0.1255]
[1733369073872,0.54073068,102940.0,102930.0,0.22265]
[1733369074122,0.24676763,102940.0,102930.0,0.22265]
[1733369074369,0.34644368,102940.0,102930.0,0.22265]
[1733369074596,0.54073068,102940.0,102930.0,0.22265]
[1733369075026,0.34644368,102940.0,102930.0,0.22265]
[1733369075267,0.24676763,102940.0,102930.0,0.4111741]
[1733369075485,0.54073068,102940.0,102930.0,0.22265]
[1733369075717,0.34644368,102940.0,102930.0,0.22265]
[1733369075948,0.46362184,102940.0,102930.0,0.22265]
[1733369076170,0.46362184,102940.0,102930.0,0.09715]
[1733369076391,0.47225074,102940.0,102930.0,0.09715]
[1733369076621,0.46362184,102940.0,102930.0,0.09715]
[1733369077557,0.47225074,102940.0,102930.0,0.09715]
[1733369077797,0.46362184,102940.0,102930.0,0.09715]
[1733369078024,0.56362184,102940.0,102930.0,0.09715]
[1733369078254,0.56362184,102940.0,102930.0,0.09694883]
[1733369078469,0.46362184,102940.0,102930.0,0.09694883]
[1733369078696,0.56362184,102940.0,102930.0,0.09694883]
[1733369079905,0.46362184,102940.0,102930.0,0.09694883]
[1733369080158,0.56362184,102940.0,102930.0,0.09694883]
[1733369080398,0.78667722,102940.0,102930.0,0.09694883]
[1733369081109,0.78667722,102940.0,102930.0,3e-08]
[1733369081110,0.78737722,102940.0,102930.0,3e-08]
[1733369081361,0.444306,102930.0,102920.0,0.006905]
[1733369081581,0.44398205,102930.0,102920.0,0.00708128]
[1733369081769,0.53744569,102930.0,102920.0,0.00708128]
[1733369082259,0.55265837,102930.0,102920.0,0.00708128]
[1733369082476,0.53744569,102930.0,102920.0,0.00708128]
[1733369082937,0.63744569,102930.0,102920.0,0.00708128]
[1733369083625,0.54607459,102930.0,102920.0,0.00708128]
[1733369085475,0.24346364,102930.0,102920.0,0.13368128]
[1733369086169,0.24346364,102930.0,102920.0,0.23084128]
[1733369086413,0.53744569,102930.0,102920.0,0.23084128]
[1733369086633,0.64607459,102930.0,102920.0,0.10424128]
[1733369086889,0.54607459,102930.0,102920.0,0.10424128]
[1733369087216,0.63744569,102930.0,102920.0,0.10424128]
[1733369087316,0.64607459,102930.0,102920.0,0.10424128]
[1733369087993,0.54607459,102930.0,102920.0,0.10424128]
[1733369088216,0.64607459,102930.0,102920.0,0.10424128]
[1733369088905,0.64820693,102930.0,102920.0,0.10424128]
[1733369089382,0.55683583,102930.0,102920.0,0.10424128]
[1733369089584,0.54820693,102930.0,102920.0,0.10424128]
[1733369090071,0.53744569,102930.0,102920.0,0.10424128]
[1733369090305,0.54607459,102930.0,102920.0,0.10424128]
[1733369090533,0.53744569,102930.0,102920.0,0.10424128]
[1733369090750,0.34313969,102930.0,102920.0,0.10424128]
[1733369090970,0.16813968,102930.0,102920.0,0.10424128]
[1733369091236,0.06846363,102930.0,102920.0,0.1818111]
[1733369091699,0.06846363,102930.0,102920.0,0.2789731]
[1733369091928,0.09925279,102930.0,102920.0,0.1818111]
[1733369092623,0.09925279,102930.0,102920.0,0.1025111]
[1733369092624,0.50468104,102930.0,102920.0,0.1025111]
[1733369092843,0.50468104,102930.0,102920.0,0.0025111]
[1733369093064,0.344344,102910.0,102900.0,0.1282358]
[1733369093325,0.53898452,102910.0,102900.0,0.12841226]
[1733369093543,0.53898452,102910.0,102900.0,0.09909226]
[1733369093544,0.66527292,102910.0,102900.0,0.09909226]
[1733369094061,0.56527292,102910.0,102900.0,0.09909226]
[1733369094508,0.66527292,102910.0,102900.0,0.09909226]
[1733369094719,0.57390182,102910.0,102900.0,0.09909226]
[1733369095193,0.67390182,102910.0,102900.0,0.09909226]
[1733369095618,0.68512063,102910.0,102900.0,0.09909226]
[1733369096318,0.55883223,102910.0,102900.0,0.09909226]
[1733369096543,0.34464052,102910.0,102900.0,0.14629226]